Cogmind - Beta 11 X6 @@@ ROGUE MODE // 2021.08.09 @ 00:46:53 Player: Runia Result: Destroyed self with Supercharged Sigix Terminator Performance ------------- Evolutions (8) 4000 Regions Visited (20) 4000 Robots Destroyed (220) 1100 Value Destroyed (6858) 6858 Prototype IDs (45) 900 Alien Tech Used (5) 1000 Bonus (5861) 5861 TOTAL SCORE: 23719 Bonus ------- High Alert Combat Kills 226 Follower Combat Kills 2386 Met Data Miner 300 Built Enhanced Grunts 300 A7 Reached Mainframe 300 Met R17 at Cetus 500 Met R17 at Research 2000 Scanned by Researcher 500 Friendly Fire -651 Cogmind --------- Core Integrity 0/1450 Matter 64/300 Energy 67/100 System Corruption 7% Temperature Cool (0) Movement Core (50) Location -2/Research Parts ------- > --- POWER (2) -------- (None) > --- PROPULSION (6) --- Improved Gyrokinetic Inverter > --- UTILITY (12) ----- (None) > --- WEAPON (3) ------- (None) > --- INVENTORY (5) ---- (None) Peak State ------------ > --- POWER ------------ Particle Reactor > --- PROPULSION ------- Flexi-carbon Leg Enhanced Flexi-carbon Leg Enhanced Flexi-carbon Leg Enhanced Flexi-carbon Leg Myomer Leg > --- UTILITY ---------- Advanced Energy Well Enhanced Optical Array Advanced Signal Interpreter Advanced Target Analyzer Improved Transmission Jammer Centrium Medium Armor Plating Centrium Medium Armor Plating Experimental Thermal Shield Improved Hacking Suite System Mapper Deep Network Scanner System Shield > --- WEAPON ----------- Railgun Improved KE Penetrator Heavy Gauss Cannon > --- INVENTORY -------- Quantum Reactor Biometal Leg Matter Filter Variable Charge Gun Phasing Sabre [Rating: 150] Favorites ----------- Power F-cell Engine Engine F-cell Engine Power Core Light Nuclear Core Reactor Quantum Reactor Propulsion Improved Treads Treads Improved Treads Leg Enhanced Flexi-carbon Leg Wheel Compact Wheel Hover Unit Improved Linear Gravjet Flight Unit Xenon Bombardment Thruster Utility Huge Storage Unit Device Heat Sink Storage Huge Storage Unit Processor Enhanced Optical Array Hackware System Shield Protection Light Armor Plating Weapon Spread Laser Energy Gun Spread Laser Energy Cannon Neutron Cannon Ballistic Gun Autogun Ballistic Cannon Heavy Gauss Cannon Launcher Mini Grenade Launcher Impact Weapon Heavy Hammer Slashing Weapon Phasing Sabre Piercing Weapon Spear Build | -11 -10 -9 -9 -8 -7 -7 -7 -7 -6 -6 -6 -6 -5 -4 -4 -4 -4 -3 -3 -2 ------- Run | Scr Mat Mat Sto Mat Fac Low Low Dat Pro Fac Was Fac Fac Fac Ext Cet Arc Res Qua Res Slots Evolved 16 | . . 2 . 2 2 . . . . 2 . . 2 2 . . . 2 . 2 Power 1 | . . . . . . . . . . . . . . . . . . . . 1 Propulsion 4 | . . 1 . . . . . . . 1 . . . . . . . 1 . 1 Utility 10 | . . 1 . 2 2 . . . . 1 . . 2 2 . . . . . . Weapon 1 | . . . . . . . . . . . . . . . . . . 1 . . Parts Attached 272 | . 9 21 27 26 32 1 2 1 6 10 4 10 7 18 25 14 7 17 31 4 Power 30 | . 1 . 2 4 6 . 1 . . 2 . 1 2 . 2 1 1 3 4 . Engine 6 | . 1 . 2 1 . . . . . . . . 1 . 1 . . . . . Core 15 | . . . . 3 6 . 1 . . 2 . 1 1 . 1 . . . . . Reactor 9 | . . . . . . . . . . . . . . . . 1 1 3 4 . Propulsion 67 | . 5 4 9 5 8 . . . 1 2 1 1 2 5 8 5 1 3 5 2 Treads 19 | . 3 1 7 4 . . . . . . . . . . . . . . 3 1 Leg 16 | . . . . . . . . . . . . . . . 5 5 1 3 2 . Wheel 7 | . 2 2 2 1 . . . . . . . . . . . . . . . . Hover 7 | . . . . . . . . . . . . . . 3 3 . . . . 1 Flight 18 | . . 1 . . 8 . . . 1 2 1 1 2 2 . . . . . . Utility 90 | . 2 6 3 6 15 1 1 . 5 6 3 7 2 5 8 4 5 5 5 1 Device 43 | . 1 2 1 2 6 1 . . 4 2 1 6 . 3 3 1 3 3 3 1 Storage 5 | . 1 . . . 1 . . . . . . 1 . . . 1 . 1 . . Processor 14 | . . . . 1 4 . . . . 3 1 . . . 1 1 . 1 2 . Hackware 12 | . . . . . 2 . . . . 1 . . 2 2 4 . 1 . . . Protection 16 | . . 4 2 3 2 . 1 . 1 . 1 . . . . 1 1 . . . Artifact . | . . . . . . . . . . . . . . . . . . . . . Weapon 85 | . 1 11 13 11 3 . . 1 . . . 1 1 8 7 4 . 6 17 1 Energy Gun 22 | . . 3 2 4 . . . . . . . . . 2 2 . . 1 8 . Energy Cannon 3 | . . . . . . . . . . . . . . 3 . . . . . . Ballistic Gun 27 | . 1 5 7 6 . . . . . . . . . . 1 2 . 2 3 . Ballistic Cannon 3 | . . . . . . . . . . . . . . . . 1 . 1 1 . Launcher 7 | . . . . . 1 . . 1 . . . . . 1 . . . . 3 1 Special Weapon . | . . . . . . . . . . . . . . . . . . . . . Impact Weapon 6 | . . . 4 1 1 . . . . . . . . . . . . . . . Slashing Weapon 15 | . . 3 . . . . . . . . . 1 1 1 4 1 . 2 2 . Piercing Weapon 2 | . . . . . 1 . . . . . . . . 1 . . . . . . Special Melee Weapon . | . . . . . . . . . . . . . . . . . . . . . Unidentified Prototypes 27 | . . 1 1 . 2 . . . . 1 1 . 2 3 . 5 . 2 9 . Parts Lost 108 | . 1 4 8 9 2 . 2 . 3 . 1 2 10 13 6 1 . 6 36 4 Power 13 | . . . . 2 1 . . . . . . 1 2 1 . 1 . . 5 . Propulsion 31 | . . 1 4 2 1 . . . 1 . . 1 4 3 3 . . 1 9 1 Utility 43 | . . 2 3 5 . . 1 . 2 . . . 2 7 2 . . 4 12 3 Weapon 21 | . 1 1 1 . . . 1 . . . 1 . 2 2 1 . . 1 10 . Highest Loss Streak 16 | . 1 1 3 4 1 . 1 . 2 . 1 2 10 7 2 1 . 5 16 2 Average Slot Usage (%) 89 | . 100 97 99 92 86 100 96 100 93 95 96 92 89 54 67 90 99 97 58 7 Engine 5 | . 14 11 11 5 . . . . . . . . 1 . . . . . . . Core 1 | . . . . 3 6 7 7 7 7 4 6 6 3 2 2 . . . . . Treads 10 | . 11 21 21 18 . . . . . . . . . . . . . . 3 1 Leg 3 | . 4 . . . . . . . . . . . . . 5 21 21 22 4 . Wheel 5 | . 11 10 11 9 . . . . . . . . . . . . . . . . Flight 4 | . . . . . 22 23 23 23 23 24 26 25 20 7 2 . . . . . Device 10 | . 14 8 10 12 13 13 8 7 5 5 1 5 5 3 7 6 9 14 12 . Storage 8 | . 14 11 11 9 7 7 7 7 7 6 6 6 4 . . 1 5 7 5 . Processor 7 | . . . . 8 14 23 23 23 23 21 26 26 23 13 9 14 15 10 10 1 Hackware 5 | . . . . . 4 7 7 7 7 13 13 13 22 18 19 26 23 12 4 2 Protection 6 | . . 11 10 8 . 1 5 7 2 4 3 . . . . 4 7 9 2 . Energy Gun 5 | . . 10 11 7 . . . . . . . . . 4 2 . . . 3 . Ballistic Gun 7 | . 28 9 9 10 . . . . . . . . . . 1 1 5 7 1 . Slashing Weapon 1 | . . 1 . . . . . . . . . 5 4 . 5 3 . 1 2 . Naked Turns . | . . . . . . . . . . . . . . . . . . . . . Heaviest Build 109 | 10 89 97 104 109 17 17 18 18 18 19 18 17 16 20 24 42 55 74 68 2 Greatest Support 134 | 20 40 46 16 16 23 18 18 18 18 23 23 23 23 30 75 101 101 134 134 60 Greatest Overweight (x) 8 | . 5 6 6 8 . . . . . . . . . 1 2 . . . 2 . Average Overweight (x) 1 | . 3 5 5 7 . . . . . . . . . . . . . . . . Largest Inventory Capacity 25 | 8 25 25 25 25 8 8 8 8 8 8 8 8 8 5 5 5 5 10 10 5 Average Capacity 16 | 8 22 25 25 25 7 8 8 8 8 8 8 8 7 5 5 5 5 8 8 5 Most Carried 25 | 6 20 25 25 25 8 8 8 8 8 8 8 8 8 5 5 5 5 9 10 4 Average Carried 14 | 5 11 22 24 24 7 8 7 7 7 5 8 7 6 4 3 4 4 6 4 2 Final Capacity 25 | 8 25 25 25 25 8 8 8 8 8 8 8 8 5 5 5 5 5 10 5 5 Final Carried 25 | 4 20 25 25 25 8 8 7 8 8 8 8 7 5 4 5 5 5 9 2 . Class Distribution -------------------- 46% | Mutant 21% | Scavenger-Mutant 8% | Wizard-Mutant 7% | Hacker-Mutant 5% | Scavenger-Tank 5% | Scout 3% | Hacker-Sprinter Dominant Class ---------------- Mutant | -10/Materials Mutant | -9/Materials Scavenger-Mutant | -9/Storage Mutant | -8/Materials Mutant | -7/Factory Scout | -7/Lower Caves Sprinter | -7/Lower Caves Sprinter | -7/Data Miner Sprinter | -6/Proximity Caves Hacker-Sprinter | -6/Factory Hacker-Sprinter | -6/Waste Hacker-Sprinter | -6/Factory Wizard-Sprinter | -5/Factory Hacker-Mutant | -4/Factory Hacker-Mutant | -4/Extension Wizard-Mutant | -4/Cetus Scavenger-Mutant | -4/Archives Scavenger-Tank | -3/Research Scavenger-Mutant | -3/Quarantine Mutant | -2/Research Resources | -11 -10 -9 -9 -8 -7 -7 -7 -7 -6 -6 -6 -6 -5 -4 -4 -4 -4 -3 -3 -2 ----------- Run | Scr Mat Mat Sto Mat Fac Low Low Dat Pro Fac Was Fac Fac Fac Ext Cet Arc Res Qua Res Matter Collected 5139 | 200 210 562 667 865 238 143 60 10 65 74 . 106 153 81 412 250 129 442 411 61 Remotely . | . . . . . . . . . . . . . . . . . . . . . Salvage Created 7975 | . 614 1540 1438 1429 353 208 96 29 38 . . 205 94 179 502 72 279 278 621 . Parts 470 | . 40 123 84 64 30 5 9 3 3 . . 18 7 13 18 3 17 9 24 . Haulers Intercepted 16 | . 2 5 6 2 . . . . . . . . . . . . . 1 . . Recyclers Shooed 15 | . 2 8 3 1 . . . . . . . . . . 1 . . . . . Parts Field Recycled . | . . . . . . . . . . . . . . . . . . . . . Retrieved Matter . | . . . . . . . . . . . . . . . . . . . . . Parts Self-Destructed 14 | . . . . . . 4 8 . 2 . . . . . . . . . . . Prevented . | . . . . . . . . . . . . . . . . . . . . . Kills | -11 -10 -9 -9 -8 -7 -7 -7 -7 -6 -6 -6 -6 -5 -4 -4 -4 -4 -3 -3 -2 ------- Run | Scr Mat Mat Sto Mat Fac Low Low Dat Pro Fac Was Fac Fac Fac Ext Cet Arc Res Qua Res Combat Hostiles Destroyed 136 | . 7 27 24 27 4 1 2 . 4 . . 4 . 10 2 1 3 1 11 8 Melee 13 | . . . . . 1 1 2 . 1 . . 4 . . . . . . 4 . Guns 96 | . 7 27 24 26 . . . . . . . . . 5 2 . 3 . 2 . Cannons 3 | . . . . . . . . . . . . . . . . 1 . 1 1 . AOE 24 | . . . . 1 3 . . . 3 . . . . 5 . . . . 4 8 Classes Destroyed 17 | . 6 5 . 1 2 1 . . . . . . . . . . . . 2 . Worker 13 | . 1 2 1 3 2 . . . . . . 1 1 . . . . 2 . . Builder 9 | . . 1 1 3 1 . . . . . . 1 . . 2 . . . . . Tunneler 1 | . . 1 . . . . . . . . . . . . . . . . . . Hauler 16 | . 2 5 6 2 . . . . . . . . . . . . . 1 . . Recycler 18 | . 3 4 3 3 1 . . . . . . . . . 2 . . 1 1 . Mechanic 1 | . . . . . 1 . . . . . . . . . . . . . . . Operator 11 | . . 3 . 1 2 . . . . . . 2 . . 1 . 2 . . . Watcher 13 | . 1 4 2 . 2 . . . . . . 1 2 . . . . . 1 . Swarmer 51 | . 3 12 4 2 3 . . . 4 . . 4 . 9 . . . . 4 6 Grunt 45 | . 4 8 9 19 . . . . . . . . . 1 2 . . 1 1 . Duelist 2 | . . 1 1 . . . . . . . . . . . . . . . . . Protector 1 | . . . . . 1 . . . . . . . . . . . . . . . Researcher 1 | . . . . . . . . . . . . . . . . . . . 1 . Sentry 24 | . . 6 10 5 . . . . . . . . . . . . 3 . . . Hunter 5 | . . . . 1 . . . . . . . . . . . . . . 2 2 Programmer 6 | . . . . . . 1 2 . . . . . . . . . . . 3 . Cetus Guard 1 | . . . . . . . . . . . . . . . . 1 . . . . Alpha 7 1 | . . . . . . . . . . . . . . . . . . . 1 . Best Kill Streak 8 | . 3 5 4 6 4 1 1 1 4 . . 4 2 5 2 1 4 2 6 8 Combat Bots Only 8 | . 3 4 4 3 3 1 1 . 4 . . 4 . 5 2 1 3 1 4 8 Max Kills in Single Turn 8 | . 2 2 2 1 2 1 1 1 2 . . 1 1 5 1 1 1 1 3 8 Gunslinging 1 | . . 1 . . . . . . . . . . . . . . . . . . Exploded 8 | . . . . 1 2 . . . 2 . . . . 5 . . . . 2 8 Melee 1 | . . . . . 1 1 1 . 1 . . 1 . . . . . . 1 . Uniques/NPCs Destroyed 1 | . . . . . . . . 1 . . . . . . . . . . . . Data Miner (-7/Data Miner) Combat | -11 -10 -9 -9 -8 -7 -7 -7 -7 -6 -6 -6 -6 -5 -4 -4 -4 -4 -3 -3 -2 -------- Run | Scr Mat Mat Sto Mat Fac Low Low Dat Pro Fac Was Fac Fac Fac Ext Cet Arc Res Qua Res Damage Taken 18624 | . 380 897 1188 2003 237 43 49 181 347 135 46 333 472 1133 556 280 49 1286 6513 2496 Core 4312 | . 75 153 142 292 48 29 . 46 178 64 46 64 54 310 124 35 28 99 994 1531 Absorbed by Shields 199 | . . . . . 23 . . . . . . . . 32 113 31 . . . . Core Remaining (%) 60 | 100 70 . 26 46 . . . . 57 . . 79 94 . . . 56 . 15 . Volleys Fired 642 | . 58 104 124 142 4 4 . . 4 . . . . 38 45 13 17 38 50 1 Largest 3 | . 2 2 2 2 1 1 . . 1 . . . . 2 2 2 2 3 3 1 Hottest 275 | . 40 88 88 130 30 30 . . 30 . . . . 275 225 96 96 131 200 . Shots Fired 1151 | . 115 203 232 274 4 4 . . 4 . . . . 44 50 19 33 87 81 1 Gun 1050 | . 115 203 232 274 . . . . . . . . . 28 48 6 17 63 64 . Cannon 81 | . . . . . . . . . . . . . . 15 2 13 16 24 11 . Launcher 20 | . . . . . 4 4 . . 4 . . . . 1 . . . . 6 1 Special . | . . . . . . . . . . . . . . . . . . . . . Kinetic 726 | . 115 106 124 165 . . . . . . . . . . 32 19 33 87 45 . Thermal 406 | . . 97 108 109 . . . . . . . . . 43 18 . . . 30 1 Explosive 19 | . . . . . 4 4 . . 4 . . . . 1 . . . . 6 . Electromagnetic . | . . . . . . . . . . . . . . . . . . . . . Robot Hit Streak 23 | . 8 15 15 19 1 . . . . . . . . 4 8 6 12 8 23 3 Robot Miss Streak 8 | . 5 8 6 6 3 . . . . . . . . 2 2 2 4 8 1 . Penetration Max 1 | . . . . . . . . . . . . . . . 1 1 . 1 . . Secondary Targets 12 | . 2 4 1 4 . . . . . . . . . . 1 . . . . . Max Gunslinging Chain 1 | . 1 1 1 1 . . . . . . . . . . 1 . . . . . Shots Hit Robots 836 | . 63 124 174 207 16 7 2 1 2 . . 12 7 18 38 13 19 36 96 1 Core Hits 540 | . 34 72 119 174 15 3 2 1 10 . . 8 3 15 12 5 9 14 37 7 Critical Kills 6 | . . 1 . . . . . . . . . . . . 2 . 3 . . . Critical Parts Destroyed 13 | . . 2 . 1 . . . . . . . . . . 2 3 . 4 1 . Critical Strikes 44 | . . 11 . 1 1 . . . . . . . . . 5 7 6 9 4 . Burn 8 | . . 8 . . . . . . . . . . . . . . . . . . Destroy 19 | . . 3 . 1 . . . . . . . . . . 4 3 3 4 1 . Blast 14 | . . . . . . . . . . . . . . . . 4 3 5 2 . Sever 2 | . . . . . . . . . . . . . . . 1 . . . 1 . Puncture 1 | . . . . . 1 . . . . . . . . . . . . . . . Melee Attacks 245 | . . 18 27 1 46 13 4 11 6 1 . 26 11 . 14 . . 22 45 . Impact 28 | . . . 27 1 . . . . . . . . . . . . . . . . Slashing 136 | . . 18 . . . . . . . . . 26 11 . 14 . . 22 45 . Piercing 81 | . . . . . 46 13 4 11 6 1 . . . . . . . . . . Sneak Attacks 25 | . . 2 1 . 10 . . 1 . . . 3 1 . 4 . . . 3 . Combat Hostiles 2 | . . . . . 2 . . . . . . . . . . . . . . . Follow-up Attacks 2 | . . . . . . . . . . . . . . . 2 . . . . . Damage Inflicted 34575 | . 530 2154 2653 3237 1514 436 80 97 331 . . 1111 544 1263 1593 654 658 1249 4688 11783 Guns 11382 | . 530 1913 2535 3080 . . . . . . . . . 288 741 204 202 673 1216 . Cannons 1903 | . . . . . . . . . . . . . . 79 35 450 456 576 307 . Explosions 14846 | . . . . 157 258 . . . 263 . . . . 892 . . . . 1529 11747 Melee 6399 | . . 241 118 . 1256 436 80 97 68 . . 1111 544 . 817 . . . 1631 . Ramming 45 | . . . . . . . . . . . . . . 4 . . . . 5 36 Kinetic 8378 | . 530 1056 1274 1585 . . . . . . . . . . 474 654 658 1249 898 . Thermal 16654 | . . 857 1261 1495 . . . . . . . . . 367 302 . . . 625 11747 Explosive 2942 | . . . . . 258 . . . 263 . . . . 892 . . . . 1529 . Electromagnetic 157 | . . . . 157 . . . . . . . . . . . . . . . . Impact 118 | . . . 118 . . . . . . . . . . . . . . . . . Slashing 4344 | . . 241 . . . . . . . . . 1111 544 . 817 . . . 1631 . Piercing 1937 | . . . . . 1256 436 80 97 68 . . . . . . . . . . . Highest Corruption 23 | . . 2 2 . . . . . . . 9 9 . . 2 2 2 16 23 7 Average Corruption 4 | . . 2 2 . . . . . . . 9 9 . . 1 2 1 15 20 3 Corruption Purged 2 | . . . . . . . . . . . . . . . . . 2 . . . Effects 124 | . . 18 26 . . . . . . . 1 11 . . 7 3 1 10 46 1 Message Errors 36 | . . 6 8 . . . . . . . . 2 . . 3 1 . 3 13 . Matter Fused 20 | . . . . . . . . . . . . 3 . . . . . 3 14 . Heat Flow Errors 22 | . . 5 9 . . . . . . . 1 3 . . . 1 . 1 2 . Energy Discharges 12 | . . 3 1 . . . . . . . . 1 . . 2 1 . 2 2 . Parts Rejected 3 | . . . . . . . . . . . . . . . . . . . 3 . Data Loss (minor) 17 | . . 2 5 . . . . . . . . 2 . . 2 . . . 5 1 Data Loss (major) 1 | . . . . . . . . . . . . . . . . . . . 1 . Misfires 1 | . . . . . . . . . . . . . . . . . . 1 . . Alerts 1 | . . . . . . . . . . . . . . . . . . . 1 . Misdirections 2 | . . . . . . . . . . . . . . . . . . . 2 . Weapon Failures 9 | . . 2 3 . . . . . . . . . . . . . 1 . 3 . Overload Shots 6 | . . . . . . . . . . . . . . 2 4 . . . . . Overflow Damage 3137 | . . . 78 . 259 175 . . 3 . . 323 135 346 166 . 28 8 478 1138 Projectiles 38 | . . . . . . . . . . . . . . . . . 28 8 2 . Explosions 1644 | . . . . . . . . . 3 . . . . 346 . . . . 157 1138 Melee 1455 | . . . 78 . 259 175 . . . . . 323 135 . 166 . . . 319 . Knockbacks 12 | . . . 1 . . . . . . . . . . . . 2 3 2 4 . Impact 2 | . . . 1 . . . . . . . . . . . . . . . 1 . Kinetic 9 | . . . . . . . . . . . . . . . . 1 3 2 3 . Secondary 1 | . . . . . . . . . . . . . . . . 1 . . . . Self-Inflicted Damage 1943 | . . . . 39 . . . . 14 . . . . 430 . . . . 13 1447 Shots 9 | . . . . 1 . . . . 1 . . . . 5 . . . . 1 1 Rammed 12 | . . . . . . . . . . . . . . 3 . . . . 2 7 Targets Rammed 12 | . . . . . . . . . . . . . . 3 . . . . 2 7 Kicked . | . . . . . . . . . . . . . . . . . . . . . Crushed . | . . . . . . . . . . . . . . . . . . . . . Highest Temperature 352 | . 26 306 309 291 . . . . 36 . 162 199 7 352 156 224 24 225 181 . Average Temperature 63 | . 10 78 51 74 . . . . 16 . 130 96 7 62 53 82 9 74 70 . Received Heat Transfer 3146 | . 156 300 429 945 40 . 9 24 96 . . 57 54 51 96 86 9 96 653 45 Effects 1 | . . 1 . . . . . . . . . . . . . . . . . . Energy Bleed 1 | . . 1 . . . . . . . . . . . . . . . . . . Siege Activations . | . . . . . . . . . . . . . . . . . . . . . Robots Corrupted . | . . . . . . . . . . . . . . . . . . . . . Combat Hostiles . | . . . . . . . . . . . . . . . . . . . . . Parts Fried . | . . . . . . . . . . . . . . . . . . . . . Impact Corruptions 3 | . . . 3 . . . . . . . . . . . . . . . . . Robots Melted . | . . . . . . . . . . . . . . . . . . . . . Combat Hostiles . | . . . . . . . . . . . . . . . . . . . . . Parts Melted 3 | . . 2 . . . . . . . . . . . . 1 . . . . . Heat Transferred 8289 | . . 2571 1923 1870 . . . . . . . . . 605 432 . . . 888 . Parts Sabotaged . | . . . . . . . . . . . . . . . . . . . . . Parts Stolen . | . . . . . . . . . . . . . . . . . . . . . Parts Stripped . | . . . . . . . . . . . . . . . . . . . . . Power Chain Reactions . | . . . . . . . . . . . . . . . . . . . . . Missiles Intercepted . | . . . . . . . . . . . . . . . . . . . . . Alert | -11 -10 -9 -9 -8 -7 -7 -7 -7 -6 -6 -6 -6 -5 -4 -4 -4 -4 -3 -3 -2 ------- Run | Scr Mat Mat Sto Mat Fac Low Low Dat Pro Fac Was Fac Fac Fac Ext Cet Arc Res Qua Res Peak Influence 829 | . 247 453 474 563 829 . . . . 144 95 352 187 298 257 491 419 541 348 228 Initial 196 | . . 8 191 180 161 . . . . 128 50 59 172 57 26 . 196 156 190 72 Average 250 | . 91 274 300 323 359 . . . . 131 68 183 112 138 154 239 371 356 123 130 Maximum Alert Level 3 | . 1 2 2 2 3 . . . . . . 1 . 1 1 2 2 2 1 1 Low Security (%) 38 | 100 91 30 15 19 23 . . . . 100 100 50 100 60 52 65 1 17 70 89 Level 1 45 | . 8 48 62 61 55 . . . . . . 50 . 39 47 9 62 43 29 10 Level 2 15 | . . 20 22 19 9 . . . . . . . . . . 24 35 38 . . Level 3 . | . . . . . 12 . . . . . . . . . . . . . . . Level 4 . | . . . . . . . . . . . . . . . . . . . . . Level 5 . | . . . . . . . . . . . . . . . . . . . . . High Security . | . . . . . . . . . . . . . . . . . . . . . Max Security . | . . . . . . . . . . . . . . . . . . . . . Squads Dispatched 35 | . . 2 3 10 5 . . . . . . 2 . . 1 . . 5 4 3 Investigation 9 | . . . 2 1 3 . . . . . . 1 . . . . . 1 . 1 Extermination 2 | . . . . . 1 . . . . . . . . . . . . . 1 . Reinforcement 19 | . . 2 1 5 1 . . . . . . 1 . . 1 . . 4 3 1 Assault 1 | . . . . . . . . . . . . . . . . . . . . 1 Garrison 4 | . . . . 4 . . . . . . . . . . . . . . . . Intercept . | . . . . . . . . . . . . . . . . . . . . . Construction Impeded 3 | . . . . 2 . . . . . . . . . . 1 . . . . . Haulers Reinforced 2 | . . . . . . . . . . . . . . . . . . 2 . . Active Scanning Responses . | . . . . . . . . . . . . . . . . . . . . . Cargo Convoy Interrupts . | . . . . . . . . . . . . . . . . . . . . . Stealth | -11 -10 -9 -9 -8 -7 -7 -7 -7 -6 -6 -6 -6 -5 -4 -4 -4 -4 -3 -3 -2 --------- Run | Scr Mat Mat Sto Mat Fac Low Low Dat Pro Fac Was Fac Fac Fac Ext Cet Arc Res Qua Res Distress Signals 27 | . . 5 2 3 . . . . . . . . 1 1 4 2 . 4 2 3 Communications Jammed 95 | . . . . . . . . . . . . . . . . . . 57 38 . Distress Signals 95 | . . . . . . . . . . . . . . . . . . 57 38 . Times Spotted 370 | . 17 42 33 49 17 1 5 4 14 . 6 13 27 15 23 17 12 19 30 26 Peak Tracking Total 17 | . 3 7 5 4 5 1 3 4 9 . 6 4 17 5 5 5 1 6 9 15 Tactical Retreats 40 | . 2 4 4 6 3 . 1 . 4 . . 2 3 2 2 . . . 2 5 Traps | -11 -10 -9 -9 -8 -7 -7 -7 -7 -6 -6 -6 -6 -5 -4 -4 -4 -4 -3 -3 -2 ------- Run | Scr Mat Mat Sto Mat Fac Low Low Dat Pro Fac Was Fac Fac Fac Ext Cet Arc Res Qua Res Traps Triggered 15 | . 2 1 2 . 1 . . . . 3 . . 2 2 1 . . 1 . . Indirectly . | . . . . . . . . . . . . . . . . . . . . . Trap Hack Attempts . | . . . . . . . . . . . . . . . . . . . . . Triggered . | . . . . . . . . . . . . . . . . . . . . . Disarmed . | . . . . . . . . . . . . . . . . . . . . . Reprogrammed . | . . . . . . . . . . . . . . . . . . . . . Reused . | . . . . . . . . . . . . . . . . . . . . . Traps Extracted . | . . . . . . . . . . . . . . . . . . . . . Installed . | . . . . . . . . . . . . . . . . . . . . . Triggered 1 | . . . . 1 . . . . . . . . . . . . . . . . Machines | -11 -10 -9 -9 -8 -7 -7 -7 -7 -6 -6 -6 -6 -5 -4 -4 -4 -4 -3 -3 -2 ---------- Run | Scr Mat Mat Sto Mat Fac Low Low Dat Pro Fac Was Fac Fac Fac Ext Cet Arc Res Qua Res Machines Disabled 29 | . 1 2 1 2 1 . 1 1 . . . . . 5 1 . 4 4 4 2 Max in Single Turn 3 | . 1 1 1 1 1 . 1 1 . . . . . 3 1 . 1 1 1 2 Garrison Access 8 | . . . 1 . 2 . . . . . . 2 . 1 . . . 1 . 1 Machines Sabotaged . | . . . . . . . . . . . . . . . . . . . . . Garrisons Compromised . | . . . . . . . . . . . . . . . . . . . . . Overloaded Fab Kills . | . . . . . . . . . . . . . . . . . . . . . Fab Network Shutdowns 1 | . . . . . 1 . . . . . . . . . . . . . . . Hacking | -11 -10 -9 -9 -8 -7 -7 -7 -7 -6 -6 -6 -6 -5 -4 -4 -4 -4 -3 -3 -2 --------- Run | Scr Mat Mat Sto Mat Fac Low Low Dat Pro Fac Was Fac Fac Fac Ext Cet Arc Res Qua Res Machines Accessed 96 | . 8 5 13 4 21 1 . 4 . 1 . 9 1 6 7 2 1 5 5 3 Terminals 70 | . 8 5 10 4 12 . . . . . . 6 1 3 7 2 . 5 4 3 Fabricators 4 | . . . . . 3 . . . . . . 1 . . . . . . . . Repair Stations 5 | . . . . . 1 . . . . 1 . . . 2 . . . . 1 . Recycling Units 5 | . . . 2 . 3 . . . . . . . . . . . . . . . Scanalyzers . | . . . . . . . . . . . . . . . . . . . . . Garrison Access 6 | . . . 1 . 2 . . . . . . 2 . 1 . . . . . . Total Hacks 300 | . 27 18 32 19 43 1 . 29 . 6 . 29 7 13 12 5 25 12 10 12 Successful 192 | . 20 7 15 9 17 1 . 29 . 6 . 15 5 9 10 5 25 9 4 6 Failed 108 | . 7 11 17 10 26 . . . . . . 14 2 4 2 . . 3 6 6 Catastrophic 13 | . 1 2 2 2 3 . . . . . . . . . . . . 2 . 1 Database Lockouts . | . . . . . . . . . . . . . . . . . . . . . Manual 91 | . 13 14 9 16 9 . 1 . . . . 12 4 3 2 1 . 2 . 5 Terminals 202 | . 27 18 25 19 26 . . . . . . 21 7 9 12 5 . 12 9 12 Fabricators 11 | . . . . . 6 . . . . . . 5 . . . . . . . . Repair Stations 12 | . . . . . 3 . . . . 6 . . . 2 . . . . 1 . Recycling Units 11 | . . . 6 . 5 . . . . . . . . . . . . . . . Scanalyzers . | . . . . . . . . . . . . . . . . . . . . . Garrison Access 9 | . . . 1 . 3 . . . . . . 3 . 2 . . . . . . Terminal Hacks 143 | . 16 4 8 5 5 1 . 29 . . . 11 5 5 9 5 25 9 3 3 Record 44 | . 1 . . . . . . 11 . . . . . . . 4 25 2 1 . Part Schematic 14 | . 1 . 1 . . . . 8 . . . 1 . . 1 . . 2 . . Robot Schematic 7 | . . . . . . . . 7 . . . . . . . . . . . . Robot Analysis 5 | . 3 1 . . . . . . . . . . . . 1 . . . . . Prototype ID Bank 10 | . 3 . 1 1 . . . 3 . . . . . 1 . . . . . 1 Open Door 10 | . . . 3 . . 1 . . . . . . . . 4 1 . . 1 . Level Access Points 4 | . . . . 1 1 . . . . . . 1 1 . . . . . . . Branch Access Points 5 | . 1 . . . 1 . . . . . . 1 1 . . . . 1 . . Emergency Access Points 2 | . . . . . . . . . . . . 1 . . . . . . . 1 Machine Index 2 | . 1 . . . . . . . . . . . . . . . . 1 . . Terminal Index 5 | . 1 1 . 1 1 . . . . . . . . . . . . 1 . . Scanalyzer Index 1 | . 1 . . . . . . . . . . . . . . . . . . . Alert Level 2 | . . . . . . . . . . . . 1 . . . . . 1 . . Unreport Threat 12 | . 1 . . 2 . . . . . . . . 3 2 3 . . . 1 . Locate Traps 5 | . . . 1 . 1 . . . . . . 3 . . . . . . . . Dispatch Records 1 | . . . . . . . . . . . . . . 1 . . . . . . Transport Status 1 | . . 1 . . . . . . . . . . . . . . . . . . Hauler Manifests 3 | . . 1 1 . . . . . . . . 1 . . . . . . . . Registered Prototypes 1 | . . . . . . . . . . . . 1 . . . . . . . . Zone Layout 9 | . 3 . 1 . 1 . . . . . . 1 . 1 . . . 1 . 1 Fabricator Hacks 4 | . . . . . 2 . . . . . . 2 . . . . . . . . Load Schematic 2 | . . . . . 1 . . . . . . 1 . . . . . . . . Build 2 | . . . . . 1 . . . . . . 1 . . . . . . . . Repair Station Hacks 11 | . . . . . 2 . . . . 6 . . . 2 . . . . 1 . Scan Component 4 | . . . . . 1 . . . . 3 . . . . . . . . . . Repair 4 | . . . . . 1 . . . . 3 . . . . . . . . . . Refit 3 | . . . . . . . . . . . . . . 2 . . . . 1 . Recycling Unit Hacks 5 | . . . 3 . 2 . . . . . . . . . . . . . . . Report Inventory 2 | . . . 2 . . . . . . . . . . . . . . . . . Retrieve Components 3 | . . . 1 . 2 . . . . . . . . . . . . . . . Scanalyzer . | . . . . . . . . . . . . . . . . . . . . . Garrison Access Hacks 6 | . . . 1 . 2 . . . . . . 2 . 1 . . . . . . Seal Access 6 | . . . 1 . 2 . . . . . . 2 . 1 . . . . . . Unauthorized Hacks 23 | . 4 3 3 4 4 . . . . . . . . 1 1 . . . . 3 Terminals 23 | . 4 3 3 4 4 . . . . . . . . 1 1 . . . . 3 Track 1 | . . . . . . . . . . . . . . . . . . . . 1 Assimilate 3 | . . 1 . . . . . . . . . . . . 1 . . . . 1 Botnet 15 | . 3 1 3 3 3 . . . . . . . . 1 . . . . . 1 Operators 4 | . 1 1 . 1 1 . . . . . . . . . . . . . . . Fabricators . | . . . . . . . . . . . . . . . . . . . . . Repair Stations . | . . . . . . . . . . . . . . . . . . . . . Recycling Units . | . . . . . . . . . . . . . . . . . . . . . Scanalyzers . | . . . . . . . . . . . . . . . . . . . . . Garrison Access . | . . . . . . . . . . . . . . . . . . . . . Data Cores Recovered 1 | . . . . . . . . . . . . 1 . . . . . . . . Used . | . . . . . . . . . . . . . . . . . . . . . Hacking Detections 73 | . 8 5 9 4 18 . . . . . . 8 1 6 4 . . 5 2 3 Full Trace Events 8 | . . 1 2 . 3 . . . . . . 1 . . . . . . . 1 Feedback Events 1 | . . . . . . . . . . . . . . . . . . . . 1 Corruption 1 | . . . . . . . . . . . . . . . . . . . . 1 Feedback Blocked . | . . . . . . . . . . . . . . . . . . . . . Robot Schematics Acquired 7 | . . . . . . . . 7 . . . . . . . . . . . . Robots Built . | . . . . . . . . . . . . . . . . . . . . . Matter . | . . . . . . . . . . . . . . . . . . . . . Time . | . . . . . . . . . . . . . . . . . . . . . Total Robot Build Rating . | . . . . . . . . . . . . . . . . . . . . . Part Schematics Acquired 14 | . 1 . 1 . . . . 8 . . . 1 . . 1 . . 2 . . Parts Built 2 | . . . . . 1 . . . . . . 1 . . . . . . . . Matter 530 | . . . . . 212 . . . . . . 318 . . . . . . . . Time 119 | . . . . . 35 . . . . . . 84 . . . . . . . . Total Part Build Rating 12 | . . . . . 6 . . . . . . 6 . . . . . . . . Parts Repaired 4 | . . . . . 1 . . . . 3 . . . . . . . . . . Time 139 | . . . . . 25 . . . . 114 . . . . . . . . . . Parts Recycled . | . . . . . . . . . . . . . . . . . . . . . Recycled Matter . | . . . . . . . . . . . . . . . . . . . . . Retrieved Matter . | . . . . . . . . . . . . . . . . . . . . . Retrieved Components 13 | . . . 10 . 3 . . . . . . . . . . . . . . . Parts Scanalyzed . | . . . . . . . . . . . . . . . . . . . . . Part Schematics Acquired . | . . . . . . . . . . . . . . . . . . . . . Parts Damaged . | . . . . . . . . . . . . . . . . . . . . . Bothacking | -11 -10 -9 -9 -8 -7 -7 -7 -7 -6 -6 -6 -6 -5 -4 -4 -4 -4 -3 -3 -2 ------------ Run | Scr Mat Mat Sto Mat Fac Low Low Dat Pro Fac Was Fac Fac Fac Ext Cet Arc Res Qua Res Used RIF Installer . | . . . . . . . . . . . . . . . . . . . . . Robots Hacked . | . . . . . . . . . . . . . . . . . . . . . Non-combat . | . . . . . . . . . . . . . . . . . . . . . Combat . | . . . . . . . . . . . . . . . . . . . . . Robot Hacks Applied . | . . . . . . . . . . . . . . . . . . . . . Relay Couplers Released 8 | . . . . . . . . . . . . . . . . . . 6 . 2 Machine Destruction 4 | . . . . . . . . . . . . . . . . . . 2 . 2 Programmers 4 | . . . . . . . . . . . . . . . . . . 4 . . Robots Rewired 14 | . . . . . . . . . . . . . . . 14 . . . . . Allies Hacked 1 | . . . . . . . . . . . . . . . 1 . . . . . Hacks Repelled . | . . . . . . . . . . . . . . . . . . . . . Allies | -11 -10 -9 -9 -8 -7 -7 -7 -7 -6 -6 -6 -6 -5 -4 -4 -4 -4 -3 -3 -2 -------- Run | Scr Mat Mat Sto Mat Fac Low Low Dat Pro Fac Was Fac Fac Fac Ext Cet Arc Res Qua Res Total Allies 27 | . . 1 . . . . . . . . . . . . 21 5 . . . . Largest Group 14 | . . 1 . . . . . . . . . . . . 11 14 5 4 . . Highest-Rated Group 957 | . . 10 . . . . . . . . . . . . 581 957 321 280 . . Highest-Rated Ally 156 | . . 10 . . . . . . . . . . . . 156 156 95 95 . . Total Orders . | . . . . . . . . . . . . . . . . . . . . . Ally Attacks 254 | . . . . . . . . . . . . . . . 105 92 5 52 . . Total Damage 7889 | . . . . . . . . . . . . . . . 3275 2793 183 1638 . . Kills 52 | . . . . . . . . . . . . . . . 22 18 1 11 . . Allies Corrupted 2 | . . . . . . . . . . . . . . . 2 . . . . . Allies Melted . | . . . . . . . . . . . . . . . . . . . . . Intel | -11 -10 -9 -9 -8 -7 -7 -7 -7 -6 -6 -6 -6 -5 -4 -4 -4 -4 -3 -3 -2 ------- Run | Scr Mat Mat Sto Mat Fac Low Low Dat Pro Fac Was Fac Fac Fac Ext Cet Arc Res Qua Res Robot Analysis Total 5 | . 3 1 . . . . . . . . . . . . 1 . . . . . Derelict Logs Recovered 2 | . . . . . . 1 . . 1 . . . . . . . . . . . Drone Launches . | . . . . . . . . . . . . . . . . . . . . . Drone Recoveries . | . . . . . . . . . . . . . . . . . . . . . Exploration | -11 -10 -9 -9 -8 -7 -7 -7 -7 -6 -6 -6 -6 -5 -4 -4 -4 -4 -3 -3 -2 ------------- Run | Scr Mat Mat Sto Mat Fac Low Low Dat Pro Fac Was Fac Fac Fac Ext Cet Arc Res Qua Res Turns Passed 13889 | 9 1163 1912 2579 1876 854 379 101 81 146 187 35 316 153 441 1042 366 214 1005 857 173 Spaces Moved 10618 | 7 578 839 1071 636 1710 439 255 133 296 182 97 651 357 597 944 238 111 674 498 305 Core 508 | . . . . . . . . . . . . . . . 1 . . . 206 301 Treads 222 | . 3 2 . . 4 . . . . . . . . . . . . . 209 4 Legs 1428 | 7 116 . . . . . . . . . . . . . 199 238 111 674 83 . Wheels 3003 | . 459 837 1071 636 . . . . . . . . . . . . . . . . Hover 243 | . . . . . . . . . . . . . . 1 242 . . . . . Flight 5214 | . . . . . 1706 439 255 133 296 182 97 651 357 596 502 . . . . . Fastest Speed 29 | 120 120 175 175 190 32 32 32 32 32 29 29 29 29 37 40 120 120 120 50 50 Average Speed 92 | 120 164 176 188 203 33 32 32 32 32 29 29 29 30 38 66 120 120 120 103 51 Slowest Speed 360 | 120 360 360 190 210 160 32 32 32 32 29 29 29 40 160 150 120 120 120 245 170 Overloaded Moves . | . . . . . . . . . . . . . . . . . . . . . Propulsion Burnouts . | . . . . . . . . . . . . . . . . . . . . . Robots Hopped 11 | . . . . . 3 . . . . . . . . 3 5 . . . . . Cave-ins Triggered 2 | . . . . . . . . . . . . . . . . . . 2 . . Exploration Rate (%) 51 | 2 86 75 93 39 54 48 50 82 47 8 90 23 19 15 64 90 93 25 64 13 Regions Visited 20 Branch Regions 9 Pre-discovered Areas 1 | . . . . . . . . 1 . . . . . . . . . . . . Known Exits Taken 11 | . . . . 1 1 1 1 1 1 . . 1 1 . . 1 1 1 . . Unknown Exits Taken 7 | 1 1 1 1 . . . . . . . . . . 1 1 . . . 1 . Scrap Searched 3 | . . . . . . 1 . . 2 . . . . . . . . . . . Spaces Dug 183 | . . 15 3 1 26 6 . . 9 1 . 11 2 54 12 . . 42 1 . Terrain Destroyed 448 | . . 15 3 1 36 47 . . 41 1 . 11 2 84 15 2 5 52 41 92 Melee 86 | . . 15 3 1 26 6 . . 1 1 . 11 2 . . . . 19 1 . Projectile 72 | . . . . . . . . . . . . . . 15 15 2 5 32 3 . AOE 289 | . . . . . 10 41 . . 40 . . . . 69 . . . . 37 92 Terrain Rammed . | . . . . . . . . . . . . . . . . . . . . . Walls Destroyed . | . . . . . . . . . . . . . . . . . . . . . Machines Disabled . | . . . . . . . . . . . . . . . . . . . . . Actions | -11 -10 -9 -9 -8 -7 -7 -7 -7 -6 -6 -6 -6 -5 -4 -4 -4 -4 -3 -3 -2 --------- Run | Scr Mat Mat Sto Mat Fac Low Low Dat Pro Fac Was Fac Fac Fac Ext Cet Arc Res Qua Res Total 13208 | 8 692 1048 1356 969 1923 652 268 154 334 313 102 725 381 755 1288 299 157 766 698 320 Wait 1042 | . 22 31 69 145 69 196 7 6 19 114 . 26 . 56 206 22 17 1 36 . Move 10577 | 6 577 838 1070 635 1704 438 254 132 295 182 96 650 356 590 933 237 110 672 497 305 Hop 10 | . . . . . 2 . . . . . . . . 3 5 . . . . . Pick Up 182 | . 21 21 18 11 23 . . 3 1 5 . 6 7 8 16 5 1 11 22 3 Fast Attach 51 | . 1 . 3 4 13 . . . 1 1 3 3 . 5 6 4 4 2 1 . Attach 120 | . 3 6 5 5 13 . 1 1 4 5 . 3 7 9 13 2 1 7 31 4 Detach 12 | . . . . . 2 . . . 3 . . . . 3 2 . . . 2 . Swap 104 | . 5 15 19 17 6 1 1 . 1 4 1 4 . 4 6 8 2 8 2 . Drop 135 | 2 5 15 21 9 27 . 1 1 . 1 2 7 . 8 10 8 5 4 9 . Fire 642 | . 58 104 124 142 4 4 . . 4 . . . . 38 45 13 17 38 50 1 Melee 243 | . . 18 27 1 46 13 4 11 6 1 . 26 11 . 12 . . 22 45 . Ram 9 | . . . . . . . . . . . . . . 3 . . . . 1 5 Kick . | . . . . . . . . . . . . . . . . . . . . . Crush 4 | . . . . . . . . . . . . . . . . . . . 2 2 Escape Stasis 49 | . . . . . 14 . . . . . . . . 28 6 . . 1 . . Rewire 28 | . . . . . . . . . . . . . . . 28 . . . . . Trap . | . . . . . . . . . . . . . . . . . . . . . Miscellaneous . | . . . . . . . . . . . . . . . . . . . . . Route ------- -11/Scrapyard -10/Materials (discovered 4 exits: *Mat x3 / *Min) -9/Materials (discovered 6 exits: *Mat x2 / [*Min x2] / *Sto x2) -9/Storage -8/Materials (discovered 3 exits: *Fac x3) -7/Factory (discovered 6 exits: *Fac x4 / *Low x2) -7/Lower Caves -7/Lower Caves (discovered 2 exits: *Fac / *Dat) -7/Data Miner -6/Proximity Caves -6/Factory -6/Waste -6/Factory (discovered 6 exits: *Fac x4 / Low x2) -5/Factory (discovered 6 exits: *Fac x4 / Upp x2) -4/Factory -4/Extension (discovered 2 exits: *Res / *Cet) -4/Cetus (discovered 2 exits: *Res / *Arc) -4/Archives (discovered 3 exits: *Res / [*Hub x2]) -3/Research (discovered 4 exits: *Res / Arm / *Qua x2) -3/Quarantine -2/Research History --------- Turn | Location | Event 1 | -11/Scrapyard | Discovered new exit (range 3) 10 | -11/Scrapyard | Entered Materials 48 | -10/Materials | Identified exit to Mines 304 | -10/Materials | Build established: Mutant 622 | -10/Materials | Discovered new exit (range 16) 755 | -10/Materials | Discovered new exit (range 14) 1016 | -10/Materials | Discovered new exit (range 4) 1173 | -10/Materials | Entered another Materials area 1173 | -9/Materials | Evolved 2 slots: Propulsion x1, Utility x1 1173 | -9/Materials | Discovered new exit (range 14) 1435 | -9/Materials | Discovered new exit (range 15) 1526 | -9/Materials | Discovered new exit (range 11) 2423 | -9/Materials | Discovered new exit (range 13) 2952 | -9/Materials | Discovered new exit (range 7) 2988 | -9/Materials | Discovered new exit (range 15) 3085 | -9/Materials | Entered Storage 3255 | -9/Storage | Lost 3 parts (3n) 3529 | -9/Storage | Build established: Scavenger-Mutant 3584 | -9/Storage | Core integrity fell below 50% 4949 | -9/Storage | Build established: Mutant 5071 | -9/Storage | Discovered new exit (range 15) 5664 | -9/Storage | Entered Materials 5664 | -8/Materials | Evolved 2 slots: Utility x2 6067 | -8/Materials | Lost 3 parts (1p2u) 6214 | -8/Materials | Identified exit to Factory 6743 | -8/Materials | Garrison activated, responded to threat 7078 | -8/Materials | Build established: Scavenger-Mutant 7124 | -8/Materials | Garrison activated, responded to threat 7151 | -8/Materials | Core integrity fell below 50% 7209 | -8/Materials | Lost 4 parts (2n2u) 7440 | -8/Materials | Build established: Mutant 7540 | -8/Materials | Entered Factory 7540 | -7/Factory | Evolved 2 slots: Utility x2 7940 | -7/Factory | Repaired Nuclear Pulse Thruster 8085 | -7/Factory | Fabricated Adv. Hacking Suite (x1) 8100 | -7/Factory | Discovered new exit (range 5) 8103 | -7/Factory | Identified exit to Factory 8236 | -7/Factory | Local fabrication network quarantined 8368 | -7/Factory | Identified exit to Lower Caves 8380 | -7/Factory | Build established: Scout 8394 | -7/Factory | Entered Lower Caves 8396 | -7/Lower Caves | Learned Factory non-interactive machine intel 8411 | -7/Lower Caves | Spotted B-75 Beast 8758 | -7/Lower Caves | Discovered new exit (range 16) 8767 | -7/Lower Caves | Identified exit to Lower Caves 8773 | -7/Lower Caves | Entered another Lower Caves area 8784 | -7/Lower Caves | Discovered exit to Factory (range 15) 8822 | -7/Lower Caves | Attracted the attention of an 0b10 checkpoint 8823 | -7/Lower Caves | Spotted B-75 Beast 8856 | -7/Lower Caves | Discovered new exit (range 13) 8861 | -7/Lower Caves | Identified exit to Data Miner 8870 | -7/Lower Caves | Acquired the password to a Derelict Tinkerer's latest research 8874 | -7/Lower Caves | Entered Data Miner 8874 | -7/Data Miner | Discovered new exit (range 6) 8880 | -7/Data Miner | Met Data Miner 8889 | -7/Data Miner | Learned location of Section 7 (-3) 8889 | -7/Data Miner | Acquired the access code to Warlord's prototype stash 8894 | -7/Data Miner | Received God Mode back door access code from Data Miner 8906 | -7/Data Miner | Destroyed Data Miner 8909 | -7/Data Miner | Found Prototype Hackware 8910 | -7/Data Miner | Found Prototype Hackware 8911 | -7/Data Miner | Found Prototype Hackware 8912 | -7/Data Miner | Data Conduit disabled 8954 | -7/Data Miner | Identified exit to Proximity Caves 8955 | -7/Data Miner | Entered Proximity Caves 8959 | -6/Proximity Caves | Spotted B-75 Beast 9101 | -6/Proximity Caves | Entered Factory 9101 | -6/Factory | Evolved 2 slots: Propulsion x1, Utility x1 9102 | -6/Factory | Loaded intel: 269 non-interactive machine locations 9103 | -6/Factory | Identified System Mapper 9150 | -6/Factory | Repaired Xenon Bombardment Thruster 9178 | -6/Factory | Repaired Structural Scanner 9224 | -6/Factory | Repaired Mic. Nuclear Core 9288 | -6/Factory | Sucked down chute 9288 | -6/Factory | Entered Waste 9290 | -6/Waste | Found Prototype Processor 9290 | -6/Waste | Identified Exp. Signal Interpreter 9302 | -6/Waste | Spotted C-40 Crusher 9303 | -6/Waste | EMP discharged 9304 | -6/Waste | Spotted C-40 Crusher 9307 | -6/Waste | Spotted C-40 Crusher 9307 | -6/Waste | Spotted C-40 Crusher 9308 | -6/Waste | Spotted C-40 Crusher 9308 | -6/Waste | Spotted C-40 Crusher 9316 | -6/Waste | Discovered new exit (range 22) 9317 | -6/Waste | Crushed by Compactor (1 part destroyed, 2 dropped) 9323 | -6/Waste | Identified exit to Factory 9323 | -6/Waste | Entered Factory 9345 | -6/Factory | Discovered new exit (range 8) 9347 | -6/Factory | Identified exit to Factory 9377 | -6/Factory | Identified exit to Lower Caves 9479 | -6/Factory | Build established: Hacker-Sprinter 9498 | -6/Factory | Fabricated Mni. Smartbomb Launcher (x1) 9639 | -6/Factory | Entered another Factory area 9639 | -5/Factory | Evolved 2 slots: Utility x2 9639 | -5/Factory | Identified Deep Network Scanner 9640 | -5/Factory | Identified Ghost Barrier 9670 | -5/Factory | Identified exit to Factory 9670 | -5/Factory | Identified exit to Upper Caves 9792 | -5/Factory | Entered another Factory area 9792 | -4/Factory | Evolved 2 slots: Utility x2 9819 | -4/Factory | Lost 10 parts (2p4n2u2w) 9820 | -4/Factory | Spotted B-86 Titan 9992 | -4/Factory | Lost 7 parts (1n4u2w) 10078 | -4/Factory | Spotted B-86 Titan 10155 | -4/Factory | Lost 3 parts (1p1n1u) 10209 | -4/Factory | Discovered new exit (range 18) 10214 | -4/Factory | Found Prototype Slashing Weapon 10214 | -4/Factory | Identified Vibroblade 10233 | -4/Factory | Entered Extension 10242 | -4/Extension | Build established: Hacker-Mutant 10317 | -4/Extension | Rescued a captive Derelict 10317 | -4/Extension | Rescued a captive Derelict 10375 | -4/Extension | Rescued a captive Derelict 10382 | -4/Extension | Rescued a captive Derelict 10508 | -4/Extension | Rescued A7 10558 | -4/Extension | Disrupted transfer network 10673 | -4/Extension | P-70 Sage assimilated allied 6S-A2M(g) 10704 | -4/Extension | Rescued a captive Derelict 11107 | -4/Extension | Build established: Wizard-Mutant 11239 | -4/Extension | Discovered new exit (range 10) 11240 | -4/Extension | Discovered new exit (range 6) 11275 | -4/Extension | Entered Cetus 11275 | -4/Cetus | Accompanied by 10 allies (A7) 11280 | -4/Cetus | Acquired a Cetus Manufacturing Module code from A7 11290 | -4/Cetus | Spotted Cetus Guard 11290 | -4/Cetus | Spotted Cetus Guard 11292 | -4/Cetus | Spotted Cetus Guard 11292 | -4/Cetus | Spotted Cetus Guard 11294 | -4/Cetus | Allies destroyed Cetus Guard 11296 | -4/Cetus | Allies destroyed Cetus Guard 11298 | -4/Cetus | Allies destroyed Cetus Guard 11312 | -4/Cetus | Allies destroyed Cetus Guard 11371 | -4/Cetus | Started Cetus Manufacturing Module 11396 | -4/Cetus | Manufactured an Enhanced Grunt 11421 | -4/Cetus | Manufactured an Enhanced Grunt 11427 | -4/Cetus | Escorted A7 to Cetus Mainframe 11446 | -4/Cetus | Manufactured an Enhanced Grunt 11471 | -4/Cetus | Manufactured an Enhanced Grunt 11494 | -4/Cetus | Discovered new exit (range 21) 11496 | -4/Cetus | Manufactured an Enhanced Grunt 11528 | -4/Cetus | Found Prototype Device 11528 | -4/Cetus | Identified Exp. Thermal Shield 11532 | -4/Cetus | Spotted Cetus Guard 11532 | -4/Cetus | Spotted Cetus Guard 11534 | -4/Cetus | Spotted Cetus Guard 11536 | -4/Cetus | Spotted Cetus Guard 11550 | -4/Cetus | Allies destroyed Cetus Guard 11554 | -4/Cetus | Discovered new exit (range 22) 11555 | -4/Cetus | Destroyed Cetus Guard 11563 | -4/Cetus | Allies destroyed Cetus Guard 11563 | -4/Cetus | Allies destroyed Cetus Guard 11576 | -4/Cetus | Met Revision 17 11623 | -4/Cetus | Identified exit to Archives 11641 | -4/Cetus | Entered Archives 11641 | -4/Archives | Accompanied by 5 allies 11685 | -4/Archives | Discovered new exit (range 22) 11699 | -4/Archives | Discovered new exit (range 22) 11707 | -4/Archives | Unable to access archive contents 11713 | -4/Archives | Discovered new exit (range 22) 11719 | -4/Archives | Unable to access archive contents 11839 | -4/Archives | Identified exit to Research 11855 | -4/Archives | Entered Research 11855 | -3/Research | Accompanied by 4 allies 11855 | -3/Research | Evolved 2 slots: Propulsion x1, Weapon x1 12055 | -3/Research | Revision forces began assault on 0b10 12061 | -3/Research | Identified exit to Armory 12061 | -3/Research | Identified exit to Quarantine 12137 | -3/Research | Met up with Revision 17++ 12158 | -3/Research | Build established: Scavenger-Tank 12391 | -3/Research | Spotted B-86 Titan 12555 | -3/Research | Research terminal network offline 12621 | -3/Research | Discovered new exit (range 7) 12665 | -3/Research | Crushed by falling debris 12665 | -3/Research | System corruption reached 10% 12670 | -3/Research | Crushed by falling debris 12701 | -3/Research | Lost 5 parts (1n3u1w) 12860 | -3/Research | Entered Quarantine 12877 | -3/Quarantine | Build established: Scavenger-Mutant 12960 | -3/Quarantine | Found Alien Artifact 12960 | -3/Quarantine | Identified Subatomic Replicator 12974 | -3/Quarantine | Spotted Alpha 7 13077 | -3/Quarantine | Destroyed Alpha 7 13098 | -3/Quarantine | Found Prototype Processor 13099 | -3/Quarantine | Identified Exp. Target Analyzer 13105 | -3/Quarantine | Lost 16 parts (2p5n4u5w) 13108 | -3/Quarantine | Found Alien Launcher 13109 | -3/Quarantine | Identified Sigix Terminator 13112 | -3/Quarantine | Used Subatomic Replicator to create Alien Launcher 13117 | -3/Quarantine | Identified Supercharged Sigix Terminator 13218 | -3/Quarantine | Lost 3 parts (1n1u1w) 13310 | -3/Quarantine | Found Alien Slashing Weapon 13312 | -3/Quarantine | Identified Sigix Broadsword 13355 | -3/Quarantine | Found Alien Artifact 13356 | -3/Quarantine | Identified Terrabomb 13356 | -3/Quarantine | Used Terrabomb 13394 | -3/Quarantine | Scanned by Researcher 13423 | -3/Quarantine | Lost 3 parts (1p2u) 13507 | -3/Quarantine | Lost 4 parts (1n2u1w) 13588 | -3/Quarantine | Lost 3 parts (1p1n1w) 13614 | -3/Quarantine | Core integrity fell below 50% 13680 | -3/Quarantine | Spotted Fortress 13690 | -3/Quarantine | Lost 7 parts (1p1n3u2w) 13700 | -3/Quarantine | Discovered new exit (range 19) 13707 | -3/Quarantine | Core integrity fell below 20% 13717 | -3/Quarantine | Entered Research 13717 | -2/Research | Evolved 2 slots: Power x1, Propulsion x1 13750 | -2/Research | Build established: Mutant 13761 | -2/Research | Spotted B-90 Cyclops 13880 | -2/Research | Core integrity fell below 50% 13890 | -2/Research | Core integrity fell below 20% 13890 | -2/Research | Fired Supercharged Sigix Terminator 13890 | -2/Research | Destroyed self with Supercharged Sigix Terminator Last Messages --------------- Destroyed Xenon Bombardment Thruster. S-43 Plague destroyed. Destroyed Hvy. Machine Gun. Destroyed Xenon Bombardment Thruster. S-43 Plague destroyed. Destroyed Biometal Leg. H-88 Terminator destroyed. S-43 Plague destroyed. H-88 Terminator destroyed. S-43 Plague destroyed. Terminal disabled. Destroyed Hvy. Machine Gun. Destroyed Xenon Bombardment Thruster. S-43 Plague destroyed. Destroyed Hvy. Machine Gun. Destroyed Xenon Bombardment Thruster. Destroyed Lgt. Antimatter Reactor. Destroyed Xenon Bombardment Thruster. S-43 Plague destroyed. ALERT: Garrison Access compromised, dispatching assault squad. Map ----- +----------------------------------------------------+ | ?????????????????????????????????????????????????? | | ?????????????????????????????????????????????????? | | ?????????????????????????????????????????????????? | | ?????????????????????????????????????????????????? | | ?????????????????????????????????????????????????? | | ?????????????????????????????????????????????????? | | ?????????????????????????????????????????????????? | | ?????????????????????????????????????????????????? | | ?????????????????????????????????????????????????? | | ?????????????????????????????????????????????????? | | ?????????????????????????????????????????????????? | | ?????????????????????????????????????????????????? | | ?????????????????????????????????????????????????? | | ?????????????????????????????????????????????????? | | ?????????????????????????????????????????????????? | | ?????????????????????????????????????????????????? | | ??????????????????????????????#??????????????????? | | ????????????????????????????? #??????????????????? | | ????????????????????????????? #??????????????????? | | ???????????????????????????? #??????????????????? | | ???????????????????????????? #??????????????????? | | ??????????????????????????? ; ?????????? | | ??????????????????????????? ; ;;;;?????????? | | ?????????????????????????? ; ; ;?????????? | | ????????????# #####+###;;;;;;;;;;; ;########?? | | ????????? @ | | ????????? | | ????????? | | ?????????? | | ??????????###+######+####;;; ;;;;;;;;#+######+# | | ??????????????????????????;; ; ; ??? # | | ??????????????????????????;; ; ; ??? # | | ??????????????????????????;; ; ; ???"" # " | | ??????????????????????????;; ; ; ????" # " | | ??????????????????????????;; ; ; ???? # | | ??????????????????????????;; ; ;????? # | | ???????????????????????????# #????????? # | | ???????????????????????????# #????????? # | | ???????????????????????????# ############### | | ???????????????????????????# ## [ #### | | ???????????????????????????# ## #??? | | ???????????????????????????# + #??? | | ???????????????????????????# ## #??? | | ???????????????????????????# ## #??? | | ???????????????????????????# ############/##### | | ???????????????????????????# | | ???????????????????????????# | | ???????????????????????????# | | ???????????????????????????# | | ???????????????????????????# #### | +----------------------------------------------------+ Best States ------------- Heat Dissipation 76 Coolant Potential 120 Energy Generation 25 Energy Capacity 850 Matter Stores 300 Matter Capacity 300 Sight Range 22 Robot Scan Range 18 Terrain Scan Density 10 Jamming Range 12 Power Amplification 30 EM Shielding 4 Armor Coverage 450 Resistance: TH 30 Weapon Shielding 66 Evasion (%) 72 Targeting Accuracy 8 Melee Accuracy 8 Target Analysis 10 Core Analysis 6 Armor Integrity Analysis 20 Recoil Reduction 3 Matter Filtering 30 Particle Charging 25 Offensive Hacking 73 Defensive Hacking 20 Item Schematics ----------------- Med. Storage Unit | -10/Materials | Hacked Mic. Nuclear Core | -9/Storage | Hacked Combat Drone Bay | -7/Data Miner | Free Lgt. Regenerative Plating | -7/Data Miner | Free Exp. Flexi-carbon Leg | -7/Data Miner | Free Exp. Sensor Array | -7/Data Miner | Free Tactical Coordination Suite | -7/Data Miner | Free Exp. ECM Suite | -7/Data Miner | Free Mni. Smartbomb Launcher | -7/Data Miner | Free Plasma Sword | -7/Data Miner | Free Imp. Propulsion Shielding | -6/Factory | Hacked Lrn. Sensor Array | -4/Extension | Hacked Centrium Leg | -3/Research | Hacked Enh. Quantum Rifle | -3/Research | Hacked Robot Schematics ------------------ S-27 Virus | -7/Data Miner | Free G-50 Soldier | -7/Data Miner | Free G-67 Veteran | -7/Data Miner | Free L-41 Fighter | -7/Data Miner | Free X-72 Disruptor | -7/Data Miner | Free I-36 Angel | -7/Data Miner | Free I-47 Archangel | -7/Data Miner | Free Fabricated ------------ Adv. Hacking Suite | x1 | -7/Factory | Preloaded Mni. Smartbomb Launcher | x1 | -6/Factory Alien Tech Used ----------------- Subatomic Replicator Sigix Terminator Supercharged Sigix Terminator Sigix Broadsword Terrabomb Achievements -------------- None Challenges ------------ None Game ------ Seed ThermalCoolingGun Manual? 0 Play Time 03:10:20 Cumulative 270.8 hours Start 2021.08.08 @ 21:09:27 End 2021.08.09 @ 00:46:53 Sessions 1 Manual Loads 0 Difficulty Rogue Special Mode None Game No. 318 Rogue 318 Adventurer 0 Explorer 0 Win Type - Total 5 Types 5/0/0/0/0/0/0/0/0 Lore% 66 Gallery% 84 Achievement% 62 Wizard Run 0 Options --------- ASCII 0 Keyboard 0 Movement Mouse Keybinds 1 Fullscreen 2 Font 24/Smallcaps Map View 76x50 Tactical HUD 1 Map Filters NONE Filters NONE Steam 1 RUN: 9514470d-2ce1-4aae-a083-fffd8cd80b72